Cogmind - Beta 13 @@@ ROGUE MODE // 2024.06.09 @ 23:52:36 Player: DuckBoy Result: Destroyed by G-47 Trooper with Particle Gun Performance ------------- Evolutions (2) 1000 Regions Visited (10) 2000 Robots Destroyed (138) 690 Value Destroyed (3737) 3737 Prototype IDs (27) 540 Alien Tech Used (0) 0 Bonus (1227) 1227 TOTAL SCORE: 9194 Bonus ------- High Alert Combat Kills 324 Follower Combat Kills 35 Entered Garrisons 200 Used RIF Installer 500 Aligned with FarCom 300 Friendly Fire -132 Cogmind --------- Core Integrity 0/550 Matter 300/300 Energy 224/280 System Corruption 0% Temperature Warm (156) Movement Rolling (210) Ox8 Location -8/Storage Parts ------- > --- POWER (1) -------- Cooled Ion Engine > --- PROPULSION (2) --- Armored Wheel Armored Wheel > --- UTILITY (6) ------ Humpback Hacking Suite Hacking Suite Relay Coupler [NC] (6) Relay Coupler [Grunt] (24) > --- WEAPON (2) ------- Shock Rifle > --- INVENTORY (35) --- Improved Ion Engine Improved Ion Engine Compact Wheel Cesium-ion Thruster Cesium-ion Thruster Heat Sink Heat Sink High-capacity Storage Unit Core Shielding Light Armor Plating Light Armor Plating Hardened Medium Armor Plating Hardened Heavy Armor Plating Improved Light Armor Plating Improved Medium Armor Plating Improved Medium Armor Plating Improved Medium Armor Plating Improved Medium Armor Plating Improved Medium Armor Plating Improved Medium Armor Plating Improved Medium Armor Plating Hacking Suite Relay Coupler [NC] (29) Relay Coupler [Grunt] (21) Supersonic Drone Bay (1/1) EM Pulse Cannon Heavy Assault Rifle Heavy Assault Rifle Gauss Rifle Grenade Launcher Improved Datajack Great Maul Greatsword Peak State ------------ > --- POWER ------------ Cooled Ion Engine > --- PROPULSION ------- Armored Wheel Armored Wheel > --- UTILITY ---------- Improved Heat Sink Humpback Improved Medium Armor Plating Hacking Suite Hacking Suite > --- WEAPON ----------- Greatsword > --- INVENTORY -------- Improved Ion Engine Heavy Ion Engine Heat Sink Heat Sink High-capacity Storage Unit Core Shielding Light Armor Plating Light Armor Plating Hardened Medium Armor Plating Improved Medium Armor Plating Improved Medium Armor Plating Hacking Suite Relay Coupler [NC] Relay Coupler [NC] Relay Coupler [Grunt] Relay Coupler [Grunt] Relay Coupler [Grunt] Supersonic Drone Bay Shock Rifle Shock Rifle Shock Rifle Shock Rifle Beam Rifle EM Pulse Cannon Heavy Assault Rifle Heavy Assault Rifle Gauss Rifle Grenade Launcher Improved Datajack Great Maul [Rating: 37] Favorites ----------- Power Heavy Ion Engine Engine Heavy Ion Engine Power Core Light Nuclear Core Propulsion Light Treads Treads Light Treads Leg Aluminum Leg Wheel Compact Wheel Utility Hacking Suite Device Improved Heat Sink Storage Humpback Processor Signal Interpreter Hackware Hacking Suite Protection Light Armor Plating Weapon Ion Cannon Energy Gun Shock Rifle Energy Cannon Ion Cannon Ballistic Gun Heavy Assault Rifle Launcher Grenade Launcher Impact Weapon Great Maul Slashing Weapon Greatsword Special Melee Weapon Improved Datajack Build | -11 -10 -10 -9 -9 -9 -8 -8 -8 -8 -8 ------- Run | Yrd Mat Min Mat Min Exi Min Mat Gar Mat Sto Slots Evolved 4 | . . . 2 . . . 2 . . . Power . | . . . . . . . . . . . Propulsion . | . . . . . . . . . . . Utility 4 | . . . 2 . . . 2 . . . Weapon . | . . . . . . . . . . . Parts Attached 122 | 6 21 . 32 1 . 6 18 27 9 2 Power 12 | 1 3 . 6 . . . 1 1 . . Engine 11 | 1 3 . 6 . . . . 1 . . Core 1 | . . . . . . . 1 . . . Reactor . | . . . . . . . . . . . Propulsion 29 | 2 10 . 4 . . 2 4 7 . . Treads 8 | . 2 . 4 . . . . 2 . . Leg 1 | . 1 . . . . . . . . . Wheel 20 | 2 7 . . . . 2 4 5 . . Hover . | . . . . . . . . . . . Flight . | . . . . . . . . . . . Utility 33 | 1 3 . 12 . . 1 5 7 3 1 Device 7 | . . . 3 . . 1 2 . 1 . Storage 6 | 1 2 . 1 . . . 1 1 . . Processor 1 | . . . 1 . . . . . . . Hackware 5 | . . . . . . . . 2 2 1 Protection 14 | . 1 . 7 . . . 2 4 . . Artifact . | . . . . . . . . . . . Weapon 48 | 2 5 . 10 1 . 3 8 12 6 1 Energy Gun 9 | . 1 . . . . . 1 2 4 1 Energy Cannon 22 | . 4 . 7 . . 2 5 4 . . Ballistic Gun 5 | 2 . . . . . . . 3 . . Ballistic Cannon . | . . . . . . . . . . . Launcher 4 | . . . . 1 . 1 1 1 . . Special Weapon . | . . . . . . . . . . . Impact Weapon 2 | . . . 1 . . . 1 . . . Slashing Weapon 1 | . . . . . . . . 1 . . Piercing Weapon . | . . . . . . . . . . . Special Melee Weapon 5 | . . . 2 . . . . 1 2 . Unidentified Prototypes 4 | . . . 2 . . . 1 1 . . Parts Lost 32 | . . . 5 . . . 2 21 3 1 Power 3 | . . . 1 . . . . 2 . . Propulsion 8 | . . . 1 . . . . 7 . . Utility 10 | . . . 2 . . . 2 5 1 . Weapon 11 | . . . 1 . . . . 7 2 1 Highest Loss Streak 16 | . . . 2 . . . 1 16 2 1 To Critical Strikes . | . . . . . . . . . . . Average Slot Usage (%) 94 | . 98 100 98 100 100 100 88 88 89 89 Engine 8 | . 13 14 10 11 11 11 . 5 9 9 Core 1 | . . . . . . . 8 3 . . Treads 6 | . 1 . 13 22 22 9 . 2 . . Wheel 13 | . 26 28 7 . . 12 18 15 18 18 Device 12 | . . . 12 11 11 17 25 10 7 . Storage 10 | . 14 14 11 11 11 11 9 9 9 9 Processor 2 | . . . 4 11 11 4 . . . . Hackware 5 | . . . . . . . . 16 19 35 Protection 11 | . 12 14 15 11 11 11 8 8 9 . Energy Gun 2 | . 1 . . . . . . 2 15 16 Energy Cannon 14 | . 21 28 21 11 11 18 17 7 . . Ballistic Gun 1 | . 4 . . . . . . 5 . . Launcher 1 | . . . . 10 11 3 . . . . Naked Turns . | . . . . . . . . . . . Heaviest Build 228 | 13 32 32 65 65 62 66 227 228 222 219 Greatest Support 40 | 26 40 20 40 40 40 40 32 32 24 24 Greatest Overweight (x) 22 | . 1 1 4 1 1 4 7 22 9 9 Average Overweight (x) 4 | . . 1 1 1 1 1 6 10 9 8 Largest Inventory Capacity 35 | 8 15 15 20 20 20 20 35 35 35 35 Average Capacity 25 | 7 14 15 15 20 20 20 35 34 35 35 Most Carried 35 | 6 15 15 15 15 20 20 35 35 35 35 Average Carried 22 | 2 13 14 14 15 15 19 29 29 34 35 Final Capacity 35 | 8 15 15 20 20 20 20 35 35 35 35 Final Carried 35 | 6 15 15 15 15 20 20 35 29 35 35 Class Distribution -------------------- 48% | Hauler-Mutant 32% | Mutant 18% | Scavenger-Mutant Dominant Class ---------------- Mutant | -10/Materials Mutant | -10/Mines Mutant | -9/Materials Scavenger-Mutant | -9/Mines Scavenger-Mutant | -9/Exiles Scavenger-Mutant | -8/Mines Hauler-Mutant | -8/Materials Hauler-Mutant | -8/Garrison Hauler-Mutant | -8/Materials Hauler-Mutant | -8/Storage Resources | -11 -10 -10 -9 -9 -9 -8 -8 -8 -8 -8 ----------- Run | Yrd Mat Min Mat Min Exi Min Mat Gar Mat Sto Matter Collected 1759 | 219 275 15 323 50 . 80 200 497 80 20 Remotely . | . . . . . . . . . . . Salvage Created 5405 | . 543 . 1668 5 . 182 971 1107 649 280 Parts 304 | . 37 . 88 . . 13 59 55 40 12 Haulers Intercepted 10 | . 2 . 5 . . . 1 . 1 1 Recyclers Shooed 2 | . . . 1 . . . 1 . . . Parts Field Recycled . | . . . . . . . . . . . Retrieved Matter . | . . . . . . . . . . . Parts Self-Destructed . | . . . . . . . . . . . Prevented . | . . . . . . . . . . . Kills | -11 -10 -10 -9 -9 -9 -8 -8 -8 -8 -8 ------- Run | Yrd Mat Min Mat Min Exi Min Mat Gar Mat Sto Combat Hostiles Destroyed 100 | . 10 . 28 3 . 4 20 25 6 4 Guns 20 | . 5 . . . . . . 6 6 3 Cannons 63 | . 5 . 27 . . . 14 17 . . AOE 14 | . . . . 3 . 4 4 2 . 1 Classes Destroyed 14 | . 6 . 4 1 . 1 . 2 . . Worker 4 | . . . . . . 1 1 . 2 . Builder 5 | . . . 1 . . 2 1 . 1 . Tunneler 2 | . 1 . . . . . . . 1 . Hauler 10 | . 2 . 5 . . . 1 . 1 1 Recycler 5 | . . . 1 . . 1 2 . 1 . Operator 6 | . 1 . 2 . . . 2 . 1 . Watcher 9 | . 2 . 5 . . . 1 . 1 . Swarmer 30 | . 3 . 4 . . 4 8 11 . . Cutter 3 | . . . . . . . . 3 . . Grunt 37 | . 7 . 14 . . . 7 3 2 4 Duelist 1 | . . . 1 . . . . . . . Sentry 24 | . . . 9 . . . 5 7 3 . Hunter 2 | . . . . . . . . 1 1 . Assembled 3 | . . . . 3 . . . . . . Best Kill Streak 5 | . 5 . 5 3 . 4 5 5 3 3 Combat Bots Only 5 | . 4 . 3 3 . 4 5 5 2 3 Max Kills in Single Turn 3 | . 2 . 1 1 . 3 3 2 2 1 Gunslinging 1 | . 1 . . . . . . . . . Exploded 3 | . . . . 1 . 3 3 2 . 1 Melee . | . . . . . . . . . . . Uniques/NPCs Destroyed . | . . . . . . . . . . . Combat | -11 -10 -10 -9 -9 -9 -8 -8 -8 -8 -8 -------- Run | Yrd Mat Min Mat Min Exi Min Mat Gar Mat Sto Hostile Shots Fired 426 | . 27 . 124 3 . 4 68 144 40 16 Missed 113 | . 7 . 39 . . 3 22 25 13 4 Damage Taken 4526 | . 215 . 1288 89 . 9 619 1621 461 224 Core 727 | . 58 . 96 . . 9 136 262 105 61 Absorbed by Shields 37 | . . . . . . . . 37 . . Redirected to Shielding 121 | . 12 . 109 . . . . . . . Regen/Repaired (Parts) 181 | . . . 181 . . . . . . . Core Remaining (%) 83 | 100 . 76 . . . 73 . . . . Volleys Fired 376 | . 37 . 98 3 . 7 63 121 31 16 Largest 2 | . 2 . 2 1 . 2 2 2 2 2 Hottest 126 | . 120 . 120 30 . 120 120 126 100 100 Shots Fired 678 | . 74 . 195 3 . 12 124 179 61 30 Gun 209 | . 32 . . . . . . 86 61 30 Cannon 459 | . 42 . 195 . . 10 122 90 . . Launcher 10 | . . . . 3 . 2 2 3 . . Special . | . . . . . . . . . . . Kinetic 92 | . 16 . . . . . . 76 . . Thermal 464 | . 58 . 195 . . 10 122 79 . . Explosive 10 | . . . . 3 . 2 2 3 . . Electromagnetic 112 | . . . . . . . . 21 61 30 Robot Hit Streak 38 | . 7 . 11 1 . 5 14 38 8 13 Robot Miss Streak 5 | . 4 . 4 1 . 2 5 5 3 2 Penetration Max . | . . . . . . . . . . . Secondary Targets 2 | . 1 . . . . . . 1 . . Max Gunslinging Chain 1 | . 1 . . . . . . 1 . . Shots Hit Robots 437 | . 43 . 130 1 . 6 71 122 44 20 Core Hits 193 | . 20 . 44 6 . 8 34 52 20 9 Critical Kills 1 | . . . . . . . 1 . . . Critical Parts Destroyed 2 | . . . . . . . . 2 . . Critical Strikes 6 | . 1 . . . . . 1 4 . . Burn 1 | . 1 . . . . . . . . . Meltdown 1 | . . . . . . . 1 . . . Destroy 2 | . . . . . . . . 2 . . Sever 2 | . . . . . . . . 2 . . Melee Attacks 23 | . . . 7 . . . 3 6 7 . Impact 6 | . . . 3 . . . 3 . . . Slashing 6 | . . . . . . . . 6 . . Piercing . | . . . . . . . . . . . Sneak Attacks 7 | . . . 2 . . . . . 5 . Combat Hostiles 3 | . . . . . . . . . 3 . Follow-up Attacks . | . . . . . . . . . . . Damage Inflicted 10043 | . 691 . 3047 124 . 348 2025 2464 796 548 Guns 2086 | . 250 . . . . . . 686 724 426 Cannons 6424 | . 441 . 3022 . . 141 1640 1180 . . Explosions 971 | . . . . 124 . 207 322 124 72 122 Melee 474 | . . . . . . . . 474 . . Ramming 88 | . . . 25 . . . 63 . . . Kinetic 715 | . 76 . . . . . . 639 . . Thermal 6555 | . 615 . 3022 . . 141 1640 943 72 122 Explosive 649 | . . . . 124 . 207 194 124 . . Electromagnetic 1562 | . . . . . . . 128 284 724 426 Impact . | . . . . . . . . . . . Slashing 474 | . . . . . . . . 474 . . Piercing . | . . . . . . . . . . . Highest Corruption 3 | . 3 3 . . . . . . . . Average Corruption 2 | . 2 3 . . . . . . . . Corruption Purged . | . . . . . . . . . . . Corruption Blocked . | . . . . . . . . . . . Effects 10 | . 7 3 . . . . . . . . Matter Fused 4 | . 3 1 . . . . . . . . Energy Discharges 2 | . 2 . . . . . . . . . Data Loss (minor) 3 | . 1 2 . . . . . . . . Data Loss (major) 1 | . 1 . . . . . . . . . Overload Shots . | . . . . . . . . . . . Overflow Damage 278 | . 11 . 66 . . 2 56 127 16 . Projectiles 156 | . 11 . 66 . . . 40 39 . . Explosions 34 | . . . . . . 2 16 . 16 . Melee 88 | . . . . . . . . 88 . . Knockbacks . | . . . . . . . . . . . Impact . | . . . . . . . . . . . Kinetic . | . . . . . . . . . . . Secondary . | . . . . . . . . . . . Self-Inflicted Damage 163 | . . . . 39 . . 30 . 61 33 Shots 5 | . . . . 2 . . . . 2 1 Rammed 9 | . . . 5 . . 1 3 . . . Targets Rammed 9 | . . . 5 . . 1 3 . . . Kicked . | . . . . . . . . . . . Crushed . | . . . . . . . . . . . Highest Temperature 318 | . 302 . 318 . . . 114 210 9 150 Average Temperature 73 | . 84 . 72 . . . 45 77 4 75 Received Heat Transfer 1494 | . 96 . 384 . . . 243 537 126 108 Effects 1 | . 1 . . . . . . . . . Energy Bleed 1 | . 1 . . . . . . . . . Siege Activations . | . . . . . . . . . . . Robots Corrupted . | . . . . . . . . . . . Combat Hostiles . | . . . . . . . . . . . Parts Fried 6 | . . . . . . . . 2 4 . Impact Corruptions . | . . . . . . . . . . . Robots Melted 3 | . . . 1 . . . 2 . . . Combat Hostiles 3 | . . . 1 . . . 2 . . . Parts Melted 29 | . 3 . 16 . . . 6 4 . . Heat Transferred 11017 | . 1517 . 4884 . . 222 2627 1517 100 150 Parts Sabotaged . | . . . . . . . . . . . Parts Stolen . | . . . . . . . . . . . Parts Stripped . | . . . . . . . . . . . Power Chain Reactions 5 | . . . . . . . . . 2 3 Alert | -11 -10 -10 -9 -9 -9 -8 -8 -8 -8 -8 ------- Run | Yrd Mat Min Mat Min Exi Min Mat Gar Mat Sto Peak Influence 962 | . 258 64 550 191 . 140 325 962 613 212 Initial 468 | . . 64 24 171 . . . 189 468 104 Average 357 | . 138 64 392 188 . 43 181 596 477 175 Maximum Alert Level 3 | . 1 . 2 . . . 1 3 2 1 Low Security (%) 31 | 100 74 100 14 100 . 100 50 4 . 82 Level 1 21 | . 25 . 17 . . . 49 14 21 17 Level 2 41 | . . . 67 . . . . 52 78 . Level 3 6 | . . . . . . . . 28 . . Level 4 . | . . . . . . . . . . . Level 5 . | . . . . . . . . . . . High Security . | . . . . . . . . . . . Max Security . | . . . . . . . . . . . Squads Dispatched 13 | . 4 . 1 . . . 4 . 1 3 Investigation 9 | . 3 . 1 . . . 3 . . 2 Extermination . | . . . . . . . . . . . Reinforcement 3 | . 1 . . . . . 1 . 1 . Assault . | . . . . . . . . . . . Garrison 1 | . . . . . . . . . . 1 Intercept . | . . . . . . . . . . . Searches Triggered . | . . . . . . . . . . . Construction Impeded . | . . . . . . . . . . . Haulers Reinforced . | . . . . . . . . . . . Active Scanning Responses . | . . . . . . . . . . . Cargo Convoy Interrupts . | . . . . . . . . . . . Stealth | -11 -10 -10 -9 -9 -9 -8 -8 -8 -8 -8 --------- Run | Yrd Mat Min Mat Min Exi Min Mat Gar Mat Sto Distress Signals 7 | . 1 . 2 . . . 1 . 3 . Communications Jammed . | . . . . . . . . . . . Distress Signals . | . . . . . . . . . . . Times Spotted 152 | . 17 . 49 3 . 4 31 25 18 5 Peak Tracking Total 5 | . 3 . 5 3 . 4 5 5 4 3 Tactical Retreats 2 | . . . 1 . . . . 1 . . Traps | -11 -10 -10 -9 -9 -9 -8 -8 -8 -8 -8 ------- Run | Yrd Mat Min Mat Min Exi Min Mat Gar Mat Sto Traps Triggered 12 | . 6 . . . . . . 5 . 1 Indirectly . | . . . . . . . . . . . Trap Hack Attempts 66 | . . . 56 . . . . 4 6 . Triggered . | . . . . . . . . . . . Disarmed 7 | . . . 5 . . . . 1 1 . Reprogrammed . | . . . . . . . . . . . Reused . | . . . . . . . . . . . Traps Extracted . | . . . . . . . . . . . Installed . | . . . . . . . . . . . Triggered . | . . . . . . . . . . . Machines | -11 -10 -10 -9 -9 -9 -8 -8 -8 -8 -8 ---------- Run | Yrd Mat Min Mat Min Exi Min Mat Gar Mat Sto Machines Disabled 9 | . . . 1 . . 1 4 2 . 1 Max in Single Turn 1 | . . . 1 . . 1 1 1 . 1 Garrison Access 1 | . . . . . . . . . 1 . Garrison Relay 1 | . . . . . . . . 1 . . Machines Repaired . | . . . . . . . . . . . Machines Dismantled . | . . . . . . . . . . . Machines Sabotaged . | . . . . . . . . . . . Overloaded Fab Kills . | . . . . . . . . . . . Hacking | -11 -10 -10 -9 -9 -9 -8 -8 -8 -8 -8 --------- Run | Yrd Mat Min Mat Min Exi Min Mat Gar Mat Sto Machines Accessed 36 | . 7 . 12 . 2 . 9 2 4 . Terminals 28 | . 6 . 9 . . . 8 2 3 . Fabricators . | . . . . . . . . . . . Repair Stations 3 | . 1 . 2 . . . . . . . Recycling Units . | . . . . . . . . . . . Scanalyzers 1 | . . . 1 . . . . . . . Garrison Access 2 | . . . . . . . 1 . 1 . Total Hacks 110 | . 19 . 46 . 5 . 27 5 8 . Successful 55 | . 3 . 27 . 5 . 14 1 5 . Failed 54 | . 15 . 19 . . . 13 4 3 . Catastrophic 10 | . 4 . 2 . . . 2 1 1 . Database Lockouts 1 | . 1 . . . . . . . . . Manual 72 | . 15 . 24 . 1 . 22 4 6 . Terminals 86 | . 16 . 33 . . . 25 5 7 . Fabricators . | . . . . . . . . . . . Repair Stations 11 | . 3 . 8 . . . . . . . Recycling Units . | . . . . . . . . . . . Scanalyzers 5 | . . . 5 . . . . . . . Garrison Access 3 | . . . . . . . 2 . 1 . Terminal Hacks 26 | . 3 . 9 . 5 . 6 1 2 . Record 4 | . . . . . 4 . . . . . Part Schematic 3 | . . . 1 . . . 2 . . . Robot Schematic 3 | . 1 . 1 . . . 1 . . . Branch Access Points 1 | . 1 . . . . . . . . . Terminal Index 2 | . . . . . . . 1 . 1 . Repair Station Index 1 | . . . 1 . . . . . . . Alert Level 1 | . . . . . . . 1 . . . Locate Traps 3 | . . . 2 . . . . . 1 . Dispatch Records 1 | . . . 1 . . . . . . . Security Status 1 | . . . . . . . 1 . . . Hauler Manifests 2 | . 1 . 1 . . . . . . . Zone Layout 2 | . . . 2 . . . . . . . Garrison Registry 1 | . . . . . . . . 1 . . Derelict Proto ID Bank 1 | . . . . . 1 . . . . . Fabricator Hacks . | . . . . . . . . . . . Repair Station Hacks 6 | . . . 6 . . . . . . . Scan Component 3 | . . . 3 . . . . . . . Repair 3 | . . . 3 . . . . . . . Recycling Unit Hacks . | . . . . . . . . . . . Scanalyzer 4 | . . . 4 . . . . . . . Insert Component 2 | . . . 2 . . . . . . . Analyze 2 | . . . 2 . . . . . . . Garrison Access Hacks 2 | . . . . . . . 1 . 1 . Unlock Access 1 | . . . . . . . 1 . . . Seal Access 1 | . . . . . . . . . 1 . Unauthorized Hacks 17 | . . . 8 . . . 7 . 2 . Terminals 16 | . . . 7 . . . 7 . 2 . Track 1 | . . . 1 . . . . . . . Assimilate 3 | . . . 1 . . . 2 . . . Botnet 8 | . . . 3 . . . 4 . 1 . Operators 4 | . . . 2 . . . 1 . 1 . Fabricators . | . . . . . . . . . . . Repair Stations . | . . . . . . . . . . . Recycling Units . | . . . . . . . . . . . Scanalyzers 1 | . . . 1 . . . . . . . Extract 1 | . . . 1 . . . . . . . Garrison Access . | . . . . . . . . . . . Data Cores Recovered 3 | . . . 2 . . . . . 1 . Used . | . . . . . . . . . . . Hacking Detections 30 | . 7 . 9 . . . 9 2 3 . Full Trace Events 7 | . 2 . . . . . 3 1 1 . Feedback Events 1 | . 1 . . . . . . . . . Corruption 1 | . 1 . . . . . . . . . Feedback Blocked . | . . . . . . . . . . . Robot Schematics Acquired 3 | . 1 . 1 . . . 1 . . . Robots Built . | . . . . . . . . . . . Authchips . | . . . . . . . . . . . Time . | . . . . . . . . . . . Total Robot Build Rating . | . . . . . . . . . . . Part Schematics Acquired 8 | . . . 7 . . . 1 . . . Parts Built . | . . . . . . . . . . . Authchips . | . . . . . . . . . . . Time . | . . . . . . . . . . . Total Part Build Rating . | . . . . . . . . . . . Parts Repaired 3 | . . . 3 . . . . . . . Time 90 | . . . 90 . . . . . . . Parts Recycled . | . . . . . . . . . . . Recycled Matter . | . . . . . . . . . . . Retrieved Matter . | . . . . . . . . . . . Retrieved Components . | . . . . . . . . . . . Parts Scanalyzed 2 | . . . 2 . . . . . . . Part Schematics Acquired 2 | . . . 2 . . . . . . . Parts Damaged . | . . . . . . . . . . . Bothacking | -11 -10 -10 -9 -9 -9 -8 -8 -8 -8 -8 ------------ Run | Yrd Mat Min Mat Min Exi Min Mat Gar Mat Sto Used RIF Installer 1 | . . . . . . . . 1 . . Robots Hacked 4 | . . . 1 . . . . . 3 . Non-combat 2 | . . . 1 . . . . . 1 . Combat 2 | . . . . . . . . . 2 . Robot Hacks Applied 5 | . . . 1 . . . . . 4 . parse_system 1 | . . . 1 . . . . . . . purge_threat 1 | . . . . . . . . . 1 . formatsys_low 1 | . . . . . . . . . 1 . formatsys_high 2 | . . . . . . . . . 2 . Relay Couplers Released 5 | . . . . . . . . 5 . . Machine Destruction 5 | . . . . . . . . 5 . . Attached 3 | . . . . . . . . . 2 1 Fabnet Peak Effective % . | . . . . . . . . . . . Robots Rewired 1 | . . . . . . . . . 1 . Allies Hacked . | . . . . . . . . . . . Hacks Repelled . | . . . . . . . . . . . Allies | -11 -10 -10 -9 -9 -9 -8 -8 -8 -8 -8 -------- Run | Yrd Mat Min Mat Min Exi Min Mat Gar Mat Sto Total Allies 6 | . . . 1 . . . 1 . 4 . Largest Group 2 | . . . 1 1 1 1 1 1 2 2 Highest-Rated Group 42 | . . . 10 10 10 10 26 26 42 42 Highest-Rated Ally 26 | . . . 10 10 10 10 26 26 26 26 Total Orders . | . . . . . . . . . . . Ally Attacks 21 | . . . . . . . . . 13 8 Total Damage 238 | . . . . . . . . . 166 72 Kills 1 | . . . . . . . . . 1 . Allies Corrupted . | . . . . . . . . . . . Allies Melted . | . . . . . . . . . . . Intel | -11 -10 -10 -9 -9 -9 -8 -8 -8 -8 -8 ------- Run | Yrd Mat Min Mat Min Exi Min Mat Gar Mat Sto Robot Analysis Total . | . . . . . . . . . . . Derelict Logs Recovered . | . . . . . . . . . . . Drone Launches . | . . . . . . . . . . . Drone Recoveries . | . . . . . . . . . . . Exploration | -11 -10 -10 -9 -9 -9 -8 -8 -8 -8 -8 ------------- Run | Yrd Mat Min Mat Min Exi Min Mat Gar Mat Sto Turns Passed 9840 | 67 734 170 2709 195 572 615 1469 2149 1063 97 Spaces Moved 4290 | 60 543 176 1185 78 237 362 559 692 382 16 Core 4 | 4 . . . . . . . . . . Treads 1012 | . 12 . 590 78 237 95 . . . . Legs . | . . . . . . . . . . . Wheels 3274 | 56 531 176 595 . . 267 559 692 382 16 Hover . | . . . . . . . . . . . Flight . | . . . . . . . . . . . Fastest Speed 50 | 50 90 95 95 240 240 130 190 205 225 210 Average Speed 184 | 87 102 95 177 240 240 158 197 246 225 212 Slowest Speed 410 | 100 160 95 240 240 240 240 205 410 225 225 Overloaded Moves . | . . . . . . . . . . . Propulsion Burnouts . | . . . . . . . . . . . Robots Hopped . | . . . . . . . . . . . Cave-ins Triggered . | . . . . . . . . . . . Exploration Rate (%) 48 | 4 79 42 92 19 61 83 48 56 42 6 Regions Visited 10 Branch Regions 5 Pre-discovered Areas 1 | . . . . . 1 . . . . . Known Exits Taken 6 | . 1 . 1 1 1 1 1 . . . Unknown Exits Taken 3 | 1 . 1 . . . . . . 1 . Scrap Searched 2 | . . 1 . 1 . . . . . . Spaces Dug 9 | . . . 2 . . . 7 . . . Terrain Destroyed 112 | . . . 15 27 . 20 31 3 7 9 Melee 4 | . . . 2 . . . 2 . . . Projectile 32 | . . . 13 . . 1 18 . . . AOE 76 | . . . . 27 . 19 11 3 7 9 Terrain Rammed . | . . . . . . . . . . . Walls Destroyed . | . . . . . . . . . . . Machines Disabled . | . . . . . . . . . . . Actions | -11 -10 -10 -9 -9 -9 -8 -8 -8 -8 -8 --------- Run | Yrd Mat Min Mat Min Exi Min Mat Gar Mat Sto Total 5498 | 71 645 179 1587 83 241 387 789 944 523 49 Wait 434 | . 23 2 172 2 2 8 121 16 73 15 Move 4280 | 59 542 175 1184 77 236 361 558 691 381 16 Hop . | . . . . . . . . . . . Pick Up 100 | 6 13 1 13 . 3 1 16 36 11 . Fast Attach 36 | 6 8 . 9 . . 2 6 5 . . Attach 24 | . 1 . 5 . . 1 1 13 3 . Detach 2 | . . . . . . . 1 1 . . Swap 62 | . 12 . 18 1 . 3 11 9 6 2 Drop 54 | . 9 1 20 . . 3 6 13 2 . Fire 376 | . 37 . 98 3 . 7 63 121 31 16 Melee 23 | . . . 7 . . . 3 6 7 . Ram 3 | . . . . . . . 3 . . . Kick . | . . . . . . . . . . . Crush 6 | . . . 5 . . 1 . . . . Escape Stasis 29 | . . . . . . . . 29 . . Rewire 3 | . . . . . . . . . 3 . Trap 66 | . . . 56 . . . . 4 6 . Miscellaneous . | . . . . . . . . . . . Route ------- -11/Scrapyard -10/Materials (discovered 5 exits: *Mat x3 / *Min x2) -10/Mines -9/Materials (discovered 4 exits: *Mat x3 / *Min) -9/Mines -9/Exiles -8/Mines -8/Materials (discovered 4 exits: [*Fac] / [*Sto x2] / Gar) -8/Garrison (discovered 3 exits: *Mat x3) -8/Materials (discovered 2 exits: [*Fac] / [*Sto]) -8/Storage History --------- Turn | Location | Event 18 | -11/Scrapyard | Discovered new exit (range 15) 68 | -11/Scrapyard | Entered Materials 306 | -10/Materials | Build established: Mutant 325 | -10/Materials | Identified exit to Mines 345 | -10/Materials | Discovered new exit (range 8) 475 | -10/Materials | Discovered new exit (range 15) 741 | -10/Materials | Discovered new exit (range 16) 770 | -10/Materials | Central database locked down 802 | -10/Materials | Entered Mines 964 | -10/Mines | Discovered new exit (range 7) 972 | -10/Mines | Entered Materials 972 | -9/Materials | Evolved 2 slots: Utility x2 1452 | -9/Materials | Discovered new exit (range 12) 1743 | -9/Materials | Repaired Ion Cannon 1770 | -9/Materials | Repaired Lgt. Armor Plating 2110 | -9/Materials | Discovered new exit (range 9) 2226 | -9/Materials | Discovered new exit (range 13) 2397 | -9/Materials | Discovered new exit (range 11) 2723 | -9/Materials | Identified exit to Materials 3500 | -9/Materials | Build established: Scavenger-Mutant 3626 | -9/Materials | Repaired Lgt. Armor Plating 3673 | -9/Materials | Identified exit to Mines 3681 | -9/Materials | Entered Mines 3681 | -9/Mines | Accompanied by 1 ally 3682 | -9/Mines | Assembled infested the area 3866 | -9/Mines | Deemed a non-threat by the Exiles lab entrance 3866 | -9/Mines | Discovered new exit (range 5) 3873 | -9/Mines | Identified exit to Exiles 3876 | -9/Mines | Entered Exiles 3876 | -9/Exiles | Accompanied by 1 ally 3934 | -9/Exiles | Met 8R-AWN 3975 | -9/Exiles | Met EX-HEX 4059 | -9/Exiles | Met EX-BIN 4092 | -9/Exiles | Aligned with FarCom system 4095 | -9/Exiles | Given EX-Vault access code 4152 | -9/Exiles | Opened EX-Vault 4167 | -9/Exiles | Found Supersonic Drone Bay 4216 | -9/Exiles | Warned to stay clear of 0b10 Research branches 4290 | -9/Exiles | Met EX-DEC 4307 | -9/Exiles | Learned location of Zion (-6) 4427 | -9/Exiles | Discovered new exit (range 10) 4443 | -9/Exiles | Identified exit to Mines 4448 | -9/Exiles | Left Exiles lab with Supersonic Drone Bay 4448 | -9/Exiles | Entered Mines 4448 | -8/Mines | Accompanied by 1 ally 5040 | -8/Mines | Discovered exit to Materials (range 10) 5063 | -8/Mines | Entered Materials 5063 | -8/Materials | Accompanied by 1 ally 5063 | -8/Materials | Evolved 2 slots: Utility x2 5071 | -8/Materials | Discovered new exit (range 7) 5366 | -8/Materials | Build established: Hauler-Mutant 5502 | -8/Materials | Discovered new exit (range 6) 6354 | -8/Materials | Discovered new exit (range 16) 6464 | -8/Materials | Identified exit to Garrison 6532 | -8/Materials | Entered Garrison 6532 | -8/Garrison | Accompanied by 1 ally 7035 | -8/Garrison | Lost 3 parts (2n1w) 7046 | -8/Garrison | Core integrity fell below 50% 7150 | -8/Garrison | Discovered new exit (range 12) 7246 | -8/Garrison | Triggered checkpoint 7327 | -8/Garrison | Garrison Relay disabled 7352 | -8/Garrison | Lost 16 parts (2p4n4u6w) 7934 | -8/Garrison | Triggered checkpoint 8007 | -8/Garrison | Discovered new exit (range 10) 8056 | -8/Garrison | Triggered checkpoint 8413 | -8/Garrison | Discovered new exit (range 61) 8413 | -8/Garrison | Discovered new exit (range 51) 8413 | -8/Garrison | Discovered new exit (range 39) 8622 | -8/Garrison | Installed Relay Interface Framework 8681 | -8/Garrison | Entered Materials 8782 | -8/Materials | Core integrity fell below 20% 9718 | -8/Materials | Discovered new exit (range 8) 9731 | -8/Materials | Discovered new exit (range 16) 9744 | -8/Materials | Entered Storage 9744 | -8/Storage | Accompanied by 2 allies 9775 | -8/Storage | Garrison activated, responded to threat 9841 | -8/Storage | Destroyed by G-47 Trooper with Particle Gun Last Messages --------------- 09764_ G-47 Trooper misfires. 09766_ Chain reaction triggered in Lgt. Nuclear Core. 09771_ ALERT: Alarm triggered, dispatching investigation squad. 09772_ Trooper 3b destroyed. 09775_ G-47 Trooper calls for garrison reinforcements. 09775_ ALERT: Activating Garrison Access S001. 09776_ G-47 Trooper misfires. 09778_ Chain reaction triggered in Lgt. Nuclear Core. 09778_ G-47 Trooper destroyed. 09783_ Acquired 20 matter. 09785_ U-05 Engineer lays Concrete. 09792_ U-05 Engineer builds a Wall. 09794_ Detecting nearby Garrison Access. 09797_ U-05 Engineer lays Concrete. 09824_ G-47 Trooper destroyed. 09826_ U-05 Engineer lays Concrete. 09827_ A-02 Transporter destroyed. 09827_ Chain reaction triggered in Lgt. Nuclear Core. 09827_ U-05 Engineer lays Concrete. 09837_ Shock Rifle destroyed. Map ----- +----------------------------------------------------+ | ???????????????????????????????? | | ???????????????????????????????? | | ???????????????????????????????? | | ???????????????????????????????? | | ???????????????????????????????? | | ???????????????????????????????? | | ???????????????????????????????? | | ???????????????????????????????? | | ????? ???????????????????????? | | ????# ???????????????????????? | | ????# !*???????????????????????? | | ????#**%???????????????????????? | | ????# **???????????????????????? | | ????# =???????????????????????? | | ????# ???????????????????????? | | ????# ##########?????????????? | | ????# # #?????????????? | | ????# # =! #?????????????? | | ????# # =] ??????????????? | | ????# %; = ???????????????? | | ????# [[g ?????????????????? | | ????# =%= ""???????????????????? | | ????# *= ?????????????????????? | | ????# u#??????????????????????? | | ????# #??????????????????????? | | ????# @#??????????????????????? | | ????# #??????????????????????? | | ???## #??????????????????????? | | ??##; #??????????????????????? | | ??# =% #??????????????????????? | | ??##; #??????????????????????? | | ???#; #??????????????????????? | | ???## #??????????????????????? | | ????# #??????????????????????? | | ????# #??????????????????????? | | ????# #??????????????????????? | | ????#####??????????????????????? | | ???????????????????????????????? | | ???????????????????????????????? | | ???????????????????????????????? | | ???????????????????????????????? | | ???????????????????????????????? | | ???????????????????????????????? | | ???????????????????????????????? | | | | | | | | | | | | | +----------------------------------------------------+ Best States ------------- Heat Dissipation 69 Energy Generation 14 Energy Capacity 280 Matter Stores 300 Matter Capacity 300 Sight Range 16 Terrain Scan Density 10 Armor Coverage 300 Core Shielding 20 Propulsion Shielding 66 Evasion (%) 42 Recoil Reduction 2 Offensive Hacking 20 Relay Coupler Types 2 Relay Coupler Value 32 Item Schematics ----------------- Plasma Cutter | -9/Materials | Hacked Hacking Suite | -9/Materials | Scanalyzed Great Maul | -9/Materials | Scanalyzed Visual Processing Unit | -9/Materials | Extracted Lgt. EM Pulse Cannon | -9/Materials | Extracted Mining Laser | -9/Materials | Extracted Autogun | -9/Materials | Extracted System Shield | -8/Materials | Hacked Robot Schematics ------------------ M-13 Machinist | -10/Materials | Hacked I-25 Savior | -9/Materials | Hacked M-28 Smith | -8/Materials | Hacked Fabricated ------------ Nothing Alien Tech Used ----------------- None Achievements -------------- None Challenges ------------ None Game ------ Seed MiniSeismicSpecial Manual? 0 Play Time 01:10:12 Cumulative 425.0 hours Start 2024.06.09 @ 22:41:36 End 2024.06.09 @ 23:52:36 Sessions 1 Manual Loads 0 Difficulty Rogue Special Mode None Game No. 267 Rogue 264 Adventurer 3 Explorer 0 Win Type - Total 7 Types 6/0/1/0/0/0/0/0/0 Lore% 69 Gallery% 77 Achievement% 66 Wizard Run 0 Options --------- Layout 0 ASCII 0 Keyboard 0 Movement Numpad Keybinds 0 Fullscreen 1 Font 18/SmallcapsGlow Map View 76x50 Zoom Use 0% Tactical HUD 1 Map Filters NONE Filters NONE Steam 1 RUN: 00966441-974a-4556-8387-692ecab64eeb